fUSD/lending_fUSD_20240814
["ID","MTS","AMOUNT","RATE_DAILY","PERIOD"]
[334855167,1723609865054,-500.0,0.00015067,2]
[334855168,1723609865063,-2259.25757381,0.00015067,2]
[334855169,1723609865090,-325.57201946,0.00015067,2]
[334855170,1723609865416,928.92,0.00013698,2]
[334855171,1723609865473,-423.95581672,0.00015067,2]
[334855172,1723609865487,-818.54459001,0.00015067,2]
[334855173,1723609865496,-2013.19,0.00015067,2]
[334855174,1723609865506,-1443.5,0.00015067,2]
[334855175,1723609865515,-949.47,0.00015067,2]
[334855176,1723609865525,-1517.58,0.00015067,2]
[334855177,1723609865535,-3668.14,0.00015067,2]
[334855178,1723609865544,-2773.87,0.00015067,2]
[334855179,1723609865555,-500.0,0.00015067,2]
[334855180,1723609865566,-687.08,0.00015067,2]
[334855181,1723609865575,-2141.81,0.00015067,2]
[334855182,1723609865586,-1091.39,0.00015067,2]
[334855183,1723609865596,-3333.3,0.00015067,2]
[334855184,1723609865606,-1504.35,0.00015067,2]
[334855185,1723609865616,-1571.19,0.00015067,2]
[334855186,1723609865626,-1686.8,0.00015067,2]
[334855187,1723609865636,-2339.03,0.00015067,2]
[334855188,1723609865645,-2952.44,0.00015067,2]
[334855189,1723609865732,-2491.82,0.00015067,2]
[334855190,1723609865742,-6411.45,0.00015067,2]
[334855191,1723609865752,-1105.99,0.00015068,2]
[334855192,1723609865761,-500.0,0.00015068,2]
[334855193,1723609865770,-500.0,0.00015068,2]
[334855194,1723609865780,-500.0,0.00015068,2]
[334855195,1723609865789,-500.0,0.00015068,2]
[334855196,1723609865799,-799.62,0.00015068,2]
[334855197,1723609865809,-500.0,0.00015068,2]
[334855198,1723609865818,-500.0,0.00015068,2]
[334855199,1723609865828,-500.0,0.00015068,2]
[334855200,1723609865838,-500.0,0.00015068,2]
[334855201,1723609865847,-905.52,0.00015068,2]
[334855202,1723609865857,-500.0,0.00015068,2]
[334855203,1723609865866,-500.0,0.00015068,2]
[334855204,1723609865876,-500.0,0.00015068,2]
[334855205,1723609865886,-877.68,0.00015068,2]
[334855206,1723609865896,-1597.53,0.00015068,2]
[334855207,1723609865905,-500.0,0.00015068,2]
[334855208,1723609865916,-500.0,0.00015068,2]
[334855209,1723609865926,-500.0,0.00015068,2]
[334855210,1723609865935,-1514.3,0.00015068,2]
[334855211,1723609865944,-500.0,0.00015068,2]
[334855212,1723609865954,-500.0,0.00015068,2]
[334855213,1723609865963,-500.0,0.00015068,2]
[334855214,1723609865973,-1130.83,0.00015068,2]
[334855215,1723609865983,-500.0,0.00015068,2]
[334855216,1723609865996,-500.0,0.00015068,2]
[334855217,1723609866005,-500.0,0.00015068,2]
[334855218,1723609866015,-500.0,0.00015068,2]
[334855219,1723609866025,-500.0,0.00015068,2]
[334855220,1723609866036,-500.0,0.00015068,2]
[334855221,1723609866046,-500.0,0.00015068,2]
[334855222,1723609866055,-500.0,0.00015068,2]
[334855223,1723609866065,-512.96,0.00015068,2]
[334855224,1723609866076,-522.13510862,0.00015068,2]
[334855225,1723609866085,-500.0,0.00015068,2]
[334855226,1723609866095,-500.0,0.00015068,2]
[334855227,1723609866104,-500.0,0.00015068,2]
[334855228,1723609866113,-500.0,0.00015068,2]
[334855229,1723609866122,-825.54,0.00015068,2]
[334855230,1723609866131,-500.0,0.00015068,2]
[334855231,1723609866140,-500.0,0.00015068,2]
[334855232,1723609866150,-500.0,0.00015068,2]
[334855233,1723609866161,-688.2,0.00015068,2]
[334855234,1723609866170,-500.0,0.00015068,2]
[334855235,1723609866179,-500.0,0.00015068,2]
[334855236,1723609866188,-508.74,0.00015068,2]
[334855237,1723609866197,-966.26,0.00015068,2]
[334855238,1723609866207,-500.0,0.00015068,2]
[334855239,1723609866215,-500.0,0.00015068,2]
[334855240,1723609866224,-882.14,0.00015068,2]
[334855241,1723609866233,-500.0,0.00015068,2]
[334855242,1723609866243,-500.0,0.00015068,2]
[334855243,1723609866252,-500.0,0.00015068,2]
[334855244,1723609866261,-500.0,0.00015068,2]
[334855245,1723609866271,-500.0,0.00015068,2]
[334855246,1723609866280,-500.0,0.00015068,2]
[334855247,1723609866289,-500.0,0.00015068,2]
[334855248,1723609866298,-521.92,0.00015068,2]
[334855249,1723609866307,-500.0,0.00015068,2]
[334855250,1723609866317,-703.01,0.00015068,2]
[334855251,1723609866326,-500.0,0.00015068,2]
[334855252,1723609866335,-1055.94,0.00015068,2]
[334855253,1723609866344,-500.0,0.00015068,2]
[334855254,1723609866353,-500.0,0.00015068,2]
[334855255,1723609866363,-500.0,0.00015068,2]
[334855256,1723609866372,-500.0,0.00015068,2]
[334855257,1723609866381,-646.22,0.00015068,2]
[334855258,1723609866390,-2252.71,0.00015068,2]
[334855259,1723609866400,-500.0,0.00015068,2]
[334855260,1723609866409,-880.31,0.00015068,2]
[334855261,1723609866418,-500.0,0.00015068,2]
[334855262,1723609866427,-1294.46,0.00015068,2]
[334855263,1723609866436,-500.0,0.00015068,2]
[334855264,1723609866446,-500.0,0.00015068,2]
[334855265,1723609866455,-500.0,0.00015068,2]
[334855266,1723609866464,-500.0,0.00015068,2]
[334855267,1723609866473,-507.34585485,0.00015068,2]
[334855268,1723609866482,-500.0,0.00015068,2]
[334855269,1723609866491,-951.77,0.00015068,2]
[334855270,1723609866501,-500.0,0.00015068,2]
[334855271,1723609866510,-500.0,0.00015068,2]
[334855272,1723609866518,-501.2,0.00015068,2]
[334855273,1723609866527,-2007.46,0.00015068,2]
[334855274,1723609866537,-1637.64,0.00015068,2]
[334855275,1723609866546,-500.0,0.00015068,2]
[334855276,1723609866555,-500.0,0.00015068,2]
[334855277,1723609866564,-500.0,0.00015068,2]
[334855278,1723609866574,-500.0,0.00015068,2]
[334855279,1723609866583,-532.67,0.00015068,2]
[334855280,1723609866592,-500.0,0.00015068,2]
[334855281,1723609866601,-500.0,0.00015068,2]
[334855282,1723609866611,-500.0,0.00015068,2]
[334855283,1723609866622,-1243.67,0.00015068,2]
[334855284,1723609866631,-1029.48,0.00015068,2]
[334855285,1723609866641,-500.0,0.00015068,2]
[334855286,1723609866651,-500.0,0.00015068,2]
[334855287,1723609866660,-838.15,0.00015068,2]
[334855288,1723609866670,-632.46,0.00015068,2]
[334855289,1723609866679,-562.14,0.00015068,2]
[334855290,1723609866689,-735.43,0.00015068,2]
[334855291,1723609866698,-500.0,0.00015068,2]
[334855292,1723609866708,-924.42,0.00015068,2]
[334855293,1723609866718,-500.0,0.00015068,2]
[334855294,1723609866728,-679.38,0.00015068,2]
[334855295,1723609866738,-2016.25,0.00015068,2]
[334855296,1723609866747,-500.0,0.00015068,2]
[334855297,1723609866756,-996.84,0.00015068,2]
[334855298,1723609866765,-500.0,0.00015068,2]
[334855299,1723609866775,-2074.06,0.00015068,2]
[334855300,1723609866784,-500.0,0.00015068,2]
[334855301,1723609866793,-500.0,0.00015068,2]
[334855302,1723609866802,-500.0,0.00015068,2]
[334855303,1723609866811,-1744.71,0.00015068,2]
[334855304,1723609866820,-414.86,0.00015068,2]
[334855305,1723609866830,-993.13,0.00015068,2]
[334855306,1723609866839,-1346.19,0.00015068,2]
[334855307,1723609866848,-571.62,0.00015068,2]
[334855308,1723609866857,-1990.94,0.00015068,2]
[334855309,1723609866866,-1138.63,0.00015068,2]
[334855310,1723609866875,-500.0,0.00015068,2]
[334855311,1723609866885,-500.0,0.00015068,2]
[334855312,1723609866894,-500.0,0.00015068,2]
[334855313,1723609866903,-500.0,0.00015068,2]
[334855314,1723609866912,-1184.63,0.00015068,2]
[334855315,1723609866921,-570.91,0.00015068,2]
[334855316,1723609866931,-2160.46,0.00015068,2]
[334855317,1723609866940,-989.17,0.00015068,2]
[334855318,1723609866949,-1186.27,0.00015068,2]
[334855319,1723609866958,-500.0,0.00015068,2]
[334855320,1723609866967,-500.0,0.00015068,2]
[334855321,1723609866977,-500.0,0.00015068,2]
[334855322,1723609866985,-1867.57,0.00015068,2]
[334855323,1723609866998,-1273.12,0.00015068,2]
[334855324,1723609867008,-500.0,0.00015068,2]
[334855325,1723609867017,-787.73,0.00015068,2]
[334855326,1723609867026,-500.0,0.00015068,2]
[334855327,1723609867035,-840.85,0.00015068,2]
[334855328,1723609867044,-500.0,0.00015068,2]
[334855329,1723609867054,-500.0,0.00015068,2]
[334855330,1723609867063,-500.0,0.00015068,2]
[334855331,1723609867073,-816.91,0.00015068,2]
[334855332,1723609867082,-1315.34,0.00015068,2]
[334855333,1723609867091,-500.0,0.00015068,2]
[334855334,1723609867100,-742.37,0.00015068,2]
[334855335,1723609867109,-2161.83,0.00015068,2]
[334855336,1723609867118,-500.0,0.00015068,2]
[334855337,1723609867127,-500.0,0.00015068,2]
[334855338,1723609867136,-682.41,0.00015068,2]
[334855339,1723609867145,-1020.28,0.00015068,2]
[334855340,1723609867154,-823.18,0.00015068,2]
[334855341,1723609867165,-697.5,0.00015068,2]
[334855342,1723609867174,-601.0836047,0.00015068,2]
[334855343,1723609867183,-500.0,0.00015068,2]
[334855344,1723609867192,-500.0,0.00015068,2]
[334855345,1723609867201,-529.04,0.00015068,2]
[334855346,1723609867210,-500.0,0.00015068,2]
[334855347,1723609867220,-500.0,0.00015068,2]
[334855348,1723609867230,-1026.61,0.00015068,2]
[334855349,1723609867239,-1426.92,0.00015068,2]
[334855350,1723609867248,-934.99,0.00015068,2]
[334855351,1723609867257,-500.0,0.00015068,2]
[334855352,1723609867267,-1110.01,0.00015068,2]
[334855353,1723609867276,-500.0,0.00015068,2]
[334855354,1723609867285,-1062.19,0.00015068,2]
[334855355,1723609867295,-1885.75,0.00015068,2]
[334855356,1723609867304,-1081.43,0.00015068,2]
[334855357,1723609867313,-1417.64,0.00015068,2]
[334855358,1723609867322,-500.0,0.00015068,2]
[334855359,1723609867331,-500.0,0.00015068,2]
[334855360,1723609867340,-500.0,0.00015068,2]
[334855361,1723609867350,-687.0,0.00015068,2]
[334855362,1723609867359,-500.0,0.00015068,2]
[334855363,1723609867368,-779.74,0.00015068,2]
[334855364,1723609867377,-681.03,0.00015068,2]
[334855365,1723609867386,-500.0,0.00015068,2]
[334855366,1723609867395,-500.0,0.00015068,2]
[334855367,1723609867404,-533.04,0.00015068,2]
[334855368,1723609867414,-500.0,0.00015068,2]
[334855369,1723609867423,-648.57,0.00015068,2]
[334855370,1723609867433,-500.0,0.00015068,2]
[334855371,1723609867442,-859.4,0.00015068,2]
[334855372,1723609867451,-500.0,0.00015068,2]
[334855373,1723609867460,-573.93,0.00015068,2]
[334855374,1723609867469,-500.0,0.00015068,2]
[334855375,1723609867478,-575.8,0.00015068,2]
[334855376,1723609867487,-500.0,0.00015068,2]
[334855377,1723609867496,-1073.74,0.00015068,2]
[334855378,1723609867505,-2787.92,0.00015068,2]
[334855379,1723609867514,-784.46,0.00015068,2]
[334855380,1723609867523,-548.88,0.00015068,2]
[334855381,1723609867532,-500.0,0.00015068,2]
[334855382,1723609867541,-813.12,0.00015068,2]
[334855383,1723609867550,-1169.53,0.00015068,2]
[334855384,1723609867559,-500.0,0.00015068,2]
[334855385,1723609867568,-500.0,0.00015068,2]
[334855386,1723609867577,-500.0,0.00015068,2]
[334855387,1723609867587,-550.41,0.00015068,2]
[334855388,1723609867596,-874.05,0.00015068,2]
[334855389,1723609867605,-500.0,0.00015068,2]
[334855390,1723609867615,-662.44,0.00015068,2]
[334855391,1723609867624,-514.89,0.00015068,2]
[334855392,1723609867634,-897.12,0.00015068,2]
[334855393,1723609867644,-500.0,0.00015068,2]
[334855394,1723609867654,-722.1,0.00015068,2]
[334855395,1723609867664,-1677.46,0.00015068,2]
[334855396,1723609867674,-827.12,0.00015068,2]
[334855397,1723609867683,-500.0,0.00015068,2]
[334855398,1723609867693,-500.0,0.00015068,2]
[334855399,1723609867702,-747.02,0.00015068,2]
[334855400,1723609867712,-500.0,0.00015068,2]
[334855401,1723609867721,-979.9,0.00015068,2]
[334855402,1723609867731,-500.0,0.00015068,2]
[334855403,1723609867741,-1337.17,0.00015068,2]
[334855404,1723609867750,-2317.78,0.00015068,2]
[334855405,1723609867759,-1767.63,0.00015068,2]
[334855406,1723609867768,-768.37,0.00015068,2]
[334855407,1723609867778,-500.0,0.00015068,2]
[334855408,1723609867787,-1308.24,0.00015068,2]
[334855409,1723609867796,-665.33,0.00015068,2]
[334855410,1723609867806,-1152.45,0.00015068,2]
[334855411,1723609867815,-500.0,0.00015068,2]
[334855412,1723609867826,-500.0,0.00015068,2]
[334855413,1723609867835,-500.0,0.00015068,2]
[334855414,1723609867844,-500.0,0.00015068,2]
[334855415,1723609867854,-573.78,0.00015068,2]
[334855416,1723609867864,-561.17,0.00015068,2]
[334855417,1723609867873,-543.31,0.00015068,2]
[334855418,1723609867883,-727.32,0.00015068,2]
[334855419,1723609867893,-1911.45,0.00015068,2]
[334855420,1723609867902,-793.97,0.00015068,2]
[334855421,1723609867912,-500.0,0.00015068,2]
[334855422,1723609867922,-500.0,0.00015068,2]
[334855423,1723609867930,-574.12,0.00015068,2]
[334855424,1723609867939,-500.0,0.00015068,2]
[334855425,1723609867949,-500.0,0.00015068,2]
[334855426,1723609867958,-1032.04,0.00015068,2]
[334855427,1723609867968,-831.96,0.00015068,2]
[334855428,1723609867977,-500.0,0.00015068,2]
[334855429,1723609867986,-788.71,0.00015068,2]
[334855430,1723609867999,-1203.92,0.00015068,2]
[334855431,1723609868008,-500.0,0.00015068,2]
[334855432,1723609868018,-1101.68,0.00015068,2]
[334855433,1723609868027,-548.96,0.00015068,2]
[334855434,1723609868036,-500.0,0.00015068,2]
[334855435,1723609868046,-1753.38,0.00015068,2]
[334855436,1723609868055,-1248.17,0.00015068,2]
[334855437,1723609868065,-1358.16,0.00015068,2]
[334855438,1723609868077,-524.48,0.00015068,2]
[334855439,1723609868087,-757.67,0.00015068,2]
[334855440,1723609868097,-500.0,0.00015068,2]
[334855441,1723609868107,-1262.29,0.00015068,2]
[334855442,1723609868117,-500.0,0.00015068,2]
[334855443,1723609868127,-1063.98,0.00015068,2]
[334855444,1723609868136,-1515.14,0.00015068,2]
[334855445,1723609868146,-1432.6,0.00015068,2]
[334855446,1723609868155,-1036.82,0.00015068,2]
[334855447,1723609868165,-515.71,0.00015068,2]
[334855448,1723609868175,-517.32,0.00015068,2]
[334855449,1723609868184,-1528.48,0.00015068,2]
[334855450,1723609868193,-500.0,0.00015068,2]
[334855451,1723609868203,-531.49,0.00015068,2]
[334855452,1723609868212,-633.1,0.00015068,2]
[334855453,1723609868222,-500.0,0.00015068,2]
[334855454,1723609868231,-500.0,0.00015068,2]
[334855455,1723609868241,-949.66,0.00015068,2]
[334855456,1723609868250,-500.0,0.00015068,2]
[334855457,1723609868259,-670.33,0.00015068,2]
[334855458,1723609868269,-500.0,0.00015068,2]
[334855459,1723609868279,-611.16,0.00015068,2]
[334855460,1723609868288,-1056.45,0.00015068,2]
[334855461,1723609868297,-1394.22,0.00015068,2]
[334855462,1723609868306,-500.0,0.00015068,2]
[334855463,1723609868316,-500.0,0.00015068,2]
[334855464,1723609868326,-500.0,0.00015068,2]
[334855465,1723609868335,-500.0,0.00015068,2]
[334855466,1723609868345,-1262.52,0.00015068,2]
[334855467,1723609868355,-649.6,0.00015068,2]
[334855468,1723609868366,-858.99,0.00015068,2]
[334855469,1723609868376,-862.28,0.00015068,2]
[334855470,1723609868385,-668.29,0.00015068,2]
[334855471,1723609868395,-500.0,0.00015068,2]
[334855472,1723609868404,-500.0,0.00015068,2]
[334855473,1723609868415,-994.54,0.00015068,2]
[334855474,1723609868424,-500.0,0.00015068,2]
[334855475,1723609868434,-500.0,0.00015068,2]
[334855476,1723609868445,-500.0,0.00015068,2]
[334855477,1723609868454,-500.0,0.00015068,2]
[334855478,1723609868464,-500.0,0.00015068,2]
[334855479,1723609868473,-550.85626303,0.00015068,2]
[334855480,1723609868483,-500.0,0.00015068,2]
[334855481,1723609868492,-594.03,0.00015068,2]
[334855482,1723609868501,-2129.2,0.00015068,2]
[334855483,1723609868511,-500.0,0.00015068,2]
[334855484,1723609868521,-500.0,0.00015068,2]
[334855485,1723609868530,-500.0,0.00015068,2]
[334855486,1723609868540,-914.03,0.00015068,2]
[334855487,1723609868549,-500.0,0.00015068,2]
[334855488,1723609868559,-500.0,0.00015068,2]
[334855489,1723609868568,-1713.7,0.00015068,2]
[334855490,1723609868578,-1361.46,0.00015068,2]
[334855491,1723609868587,-546.87,0.00015068,2]
[334855492,1723609868597,-1866.29,0.00015068,2]
[334855493,1723609868606,-589.26,0.00015068,2]
[334855494,1723609868615,-613.17,0.00015068,2]
[334855495,1723609868626,-500.0,0.00015068,2]
[334855496,1723609868635,-2021.75,0.00015068,2]
[334855497,1723609868644,-500.0,0.00015068,2]
[334855498,1723609868654,-522.45,0.00015068,2]
[334855499,1723609868664,-1137.56,0.00015068,2]
[334855500,1723609868673,-500.0,0.00015068,2]
[334855501,1723609868683,-500.0,0.00015068,2]
[334855502,1723609868693,-500.0,0.00015068,2]
[334855503,1723609868702,-500.0,0.00015068,2]
[334855504,1723609868711,-500.0,0.00015068,2]
[334855505,1723609868721,-1319.16,0.00015068,2]
[334855506,1723609868731,-1427.54,0.00015068,2]
[334855507,1723609868741,-500.0,0.00015068,2]
[334855508,1723609868750,-500.0,0.00015068,2]
[334855509,1723609868760,-763.0,0.00015068,2]
[334855510,1723609868770,-1228.12,0.00015068,2]
[334855511,1723609868779,-500.0,0.00015068,2]
[334855512,1723609868790,-716.55,0.00015068,2]
[334855513,1723609868799,-500.0,0.00015068,2]
[334855514,1723609868808,-801.08,0.00015068,2]
[334855515,1723609868818,-952.82,0.00015068,2]
[334855516,1723609868827,-500.0,0.00015068,2]
[334855517,1723609868834,-500.0,0.00015068,2]
[334855518,1723609868843,-500.0,0.00015068,2]
[334855519,1723609868851,-500.0,0.00015068,2]
[334855520,1723609868861,-567.1,0.00015068,2]
[334855521,1723609868870,-727.51,0.00015068,2]
[334855522,1723609868880,-500.0,0.00015068,2]
[334855523,1723609868890,-500.0,0.00015068,2]
[334855524,1723609868899,-707.49,0.00015068,2]
[334855525,1723609868909,-930.55,0.00015068,2]
[334855526,1723609868919,-500.0,0.00015068,2]
[334855527,1723609868928,-660.45,0.00015068,2]
[334855528,1723609868938,-500.0,0.00015068,2]
[334855529,1723609868947,-500.0,0.00015068,2]
[334855530,1723609868957,-500.0,0.00015068,2]
[334855531,1723609868965,-1078.02,0.00015068,2]
[334855532,1723609868975,-1088.19,0.00015068,2]
[334855533,1723609868984,-314.09080263,0.00015068,2]
[334855534,1723609868996,-500.0,0.00015068,2]
[334855535,1723609869007,-759.3,0.00015068,2]
[334855536,1723609869016,-500.0,0.00015068,2]
[334855537,1723609869025,-500.0,0.00015068,2]
[334855538,1723609869035,-889.18,0.00015068,2]
[334855539,1723609869045,-1530.37,0.00015068,2]
[334855540,1723609869055,-934.11,0.00015068,2]
[334855541,1723609869064,-500.0,0.00015068,2]
[334855542,1723609869074,-500.0,0.00015068,2]
[334855543,1723609869083,-1121.46,0.00015068,2]
[334855544,1723609869093,-1039.28,0.00015068,2]
[334855545,1723609869105,-512.89,0.00015068,2]
[334855546,1723609869116,-1333.72,0.00015068,2]
[334855547,1723609869125,-500.0,0.00015068,2]
[334855548,1723609869134,-508.0668943,0.00015068,2]
[334855549,1723609869144,-1259.4,0.00015068,2]
[334855550,1723609869157,-500.0,0.00015068,2]
[334855551,1723609869166,-1236.44,0.00015068,2]
[334855552,1723609869176,-500.0,0.00015068,2]
[334855553,1723609869185,-500.0,0.00015068,2]
[334855554,1723609869195,-586.02,0.00015068,2]
[334855555,1723609869205,-500.0,0.00015068,2]
[334855556,1723609869214,-1094.67,0.00015068,2]
[334855557,1723609869223,-626.39817236,0.00015068,2]
[334855558,1723609869232,-572.66,0.00015068,2]
[334855559,1723609869242,-500.0,0.00015068,2]
[334855560,1723609869251,-899.03,0.00015068,2]
[334855561,1723609869260,-664.92,0.00015068,2]
[334855562,1723609869270,-756.4,0.00015068,2]
[334855563,1723609869279,-500.0,0.00015068,2]
[334855564,1723609869288,-500.0,0.00015068,2]
[334855565,1723609869297,-500.0,0.00015068,2]
[334855566,1723609869306,-1704.02,0.00015068,2]
[334855567,1723609869315,-534.59,0.00015068,2]
[334855568,1723609869325,-602.19,0.00015068,2]
[334855569,1723609869335,-549.62,0.00015068,2]
[334855570,1723609869344,-554.55,0.00015068,2]
[334855571,1723609869353,-500.0,0.00015068,2]
[334855572,1723609869362,-633.91,0.00015068,2]
[334855573,1723609869371,-1088.07,0.00015068,2]
[334855574,1723609869380,-500.0,0.00015068,2]
[334855575,1723609869390,-381.71175478,0.00015068,2]
[334855576,1723609869399,-1076.76,0.00015068,2]
[334855577,1723609869409,-500.0,0.00015068,2]
[334855578,1723609869420,-1310.19,0.00015068,2]
[334855579,1723609869429,-642.2,0.00015068,2]
[334855580,1723609869439,-500.0,0.00015068,2]
[334855581,1723609869449,-884.91,0.00015068,2]
[334855582,1723609869459,-500.0,0.00015068,2]
[334855583,1723609869468,-2366.93,0.00015068,2]
[334855584,1723609869478,-600.13,0.00015068,2]
[334855585,1723609869488,-500.0,0.00015068,2]
[334855586,1723609869498,-500.0,0.00015068,2]
[334855587,1723609869507,-989.3,0.00015068,2]
[334855588,1723609869516,-500.0,0.00015068,2]
[334855589,1723609869525,-4480.77,0.00015068,2]
[334855590,1723609869535,-978.57,0.00015068,2]
[334855591,1723609869544,-624.47,0.00015068,2]
[334855592,1723609869554,-500.0,0.00015068,2]
[334855593,1723609869563,-588.4,0.00015068,2]
[334855594,1723609869573,-870.91,0.00015068,2]
[334855595,1723609869582,-7603.03,0.00015068,2]
[334855596,1723609869591,-1387.64,0.00015068,2]
[334855597,1723609869600,-933.77,0.00015068,2]
[334855598,1723609869610,-500.0,0.00015068,2]
[334855599,1723609869619,-1213.63,0.00015068,2]
[334855600,1723609869629,-500.0,0.00015068,2]
[334855601,1723609869638,-34383.11,0.00015068,2]
[334855602,1723609869648,-1373.06,0.00015068,2]
[334855603,1723609869657,-500.0,0.00015068,2]
[334855604,1723609869667,-671.92,0.00015068,2]
[334855605,1723609869677,-500.0,0.00015068,2]
[334855606,1723609869686,-593.97,0.00015068,2]
[334855607,1723609869696,-670.51,0.00015068,2]
[334855608,1723609869705,-2281.42,0.00015068,2]
[334855609,1723609869714,-500.0,0.00015068,2]
[334855610,1723609869723,-403.13453605,0.00015068,2]
[334855611,1723609869733,-643.43,0.00015068,2]
[334855612,1723609869743,-1248.5,0.00015068,2]
[334855613,1723609869752,-500.0,0.00015068,2]
[334855614,1723609869848,-500.0,0.00015068,2]
[334855615,1723609869898,-1370.1,0.00015068,2]
[334855616,1723609869907,-1086.21,0.00015068,2]
[334855617,1723609869918,-518.47,0.00015068,2]
[334855618,1723609869928,-3534.93,0.00015068,2]
[334855619,1723609869937,-500.0,0.00015068,2]
[334855620,1723609869947,-1952.92,0.00015068,2]
[334855621,1723609869956,-500.0,0.00015068,2]
[334855622,1723609869965,-1576.63,0.00015068,2]
[334855623,1723609869975,-500.0,0.00015068,2]
[334855624,1723609869985,-500.0,0.00015068,2]
[334855625,1723609869998,-910.69,0.00015068,2]
[334855626,1723609870007,-539.62,0.00015068,2]
[334855627,1723609870017,-1851.14,0.00015068,2]
[334855628,1723609870028,-860.94,0.00015068,2]
[334855629,1723609870039,-500.0,0.00015068,2]
[334855630,1723609870048,-500.0,0.00015068,2]
[334855631,1723609870058,-6490.63049665,0.00015068,2]
[334855632,1723609870097,-1067.08377648,0.00015068,2]
[334855633,1723609870180,-3919.65572687,0.00015068,2]
[334855634,1723609870190,-500.0,0.00015068,2]
[334855635,1723609870200,-173.75635776,0.00015068,2]
[334855636,1723609870210,-500.0,0.00015068,2]
[334855637,1723609870220,-500.0,0.00015068,2]
[334855638,1723609870230,-1281.62,0.00015068,2]
[334855639,1723609870239,-506.42,0.00015068,2]
[334855640,1723609870249,-940.92,0.00015068,2]
[334855641,1723609870258,-500.0,0.00015068,2]
[334855642,1723609870268,-1472.9,0.00015068,2]
[334855643,1723609870278,-627.23,0.00015068,2]
[334855644,1723609870288,-500.0,0.00015068,2]
[334855645,1723609870297,-572.1,0.00015068,2]
[334855646,1723609870307,-542.26,0.00015068,2]
[334855647,1723609870316,-500.0,0.00015068,2]
[334855648,1723609870326,-3046.11,0.00015068,2]
[334855649,1723609870335,-500.0,0.00015068,2]
[334855650,1723609870344,-703.44,0.00015068,2]
[334855651,1723609870354,-1526.23,0.00015068,2]
[334855652,1723609870363,-625.03,0.00015068,2]
[334855653,1723609870373,-661.53,0.00015068,2]
[334855654,1723609870383,-1572.44,0.00015068,2]
[334855655,1723609870392,-1259.91,0.00015068,2]
[334855656,1723609870402,-999.55,0.00015068,2]
[334855657,1723609870412,-500.0,0.00015068,2]
[334855658,1723609870422,-809.75,0.00015068,2]
[334855659,1723609870432,-500.0,0.00015068,2]
[334855660,1723609870441,-500.0,0.00015068,2]
[334855661,1723609870451,-2268.61,0.00015068,2]
[334855662,1723609870460,-1125.39,0.00015068,2]
[334855663,1723609870470,-779.17,0.00015068,2]
[334855664,1723609870479,-1486.32,0.00015068,2]
[334855665,1723609870489,-731.78,0.00015068,2]
[334855666,1723609870498,-1470.1,0.00015068,2]